[Event "*** Titled Tuesday 3|2 Blitz"]
[Site "Chess.com"]
[Date "2016.02.02"]
[Round "4"]
[White "manubibi"]
[Black "GianmarcoVaR"]
[Result "0-1"]
[WhiteElo "2405"]
[BlackElo "2241"]
[TimeControl "180+2"]
[EndTime "11:47:59 PST"]
[Termination "GianmarcoVaR won by resignation"]

1. e4 {[%clk 0:03:01.9]} 1... c6 {[%clk 0:03:00.1]} 2. d4 {[%clk 0:03:02.2]}
2... d5 {[%clk 0:03:01.1]} 3. Nd2 {[%clk 0:03:03.2]} 3... dxe4 {[%clk
0:03:01.1]} 4. Nxe4 {[%clk 0:03:05.1]} 4... Bf5 {[%clk 0:03:01.8]} 5. Ng3 {[%clk
0:03:06.3]} 5... Bg6 {[%clk 0:03:02]} 6. h4 {[%clk 0:03:07.9]} 6... h6 {[%clk
0:03:03.4]} 7. Nf3 {[%clk 0:03:09.4]} 7... Nd7 {[%clk 0:03:04]} 8. h5 {[%clk
0:03:11]} 8... Bh7 {[%clk 0:03:05.7]} 9. Bd3 {[%clk 0:03:12]} 9... Bxd3 {[%clk
0:03:07.1]} 10. Qxd3 {[%clk 0:03:13.9]} 10... e6 {[%clk 0:03:08.3]} 11. Bf4
{[%clk 0:03:15.4]} 11... Qa5+ {[%clk 0:03:08.5]} 12. Bd2 {[%clk 0:03:15.7]}
12... Bb4 {[%clk 0:03:10]} 13. c3 {[%clk 0:03:17]} 13... Be7 {[%clk 0:03:11.1]}
14. c4 {[%clk 0:03:18.6]} 14... Qc7 {[%clk 0:03:12.5]} 15. O-O-O {[%clk
0:03:19.2]} 15... Ngf6 {[%clk 0:03:14]} 16. Kb1 {[%clk 0:03:19.8]} 16... O-O
{[%clk 0:03:10.7]} 17. Ne4 {[%clk 0:03:20]} 17... b5 {[%clk 0:03:07.8]} 18. c5
{[%clk 0:03:20.5]} 18... Rfd8 {[%clk 0:03:00.3]} 19. g4 {[%clk 0:02:59]} 19...
Nxg4 {[%clk 0:02:27.7]} 20. Rhg1 {[%clk 0:02:52.9]} 20... f5 {[%clk 0:02:28]}
21. Qb3 {[%clk 0:02:49.9]} 21... Nf8 {[%clk 0:02:25.6]} 22. Rxg4 {[%clk
0:02:05.6]} 22... fxg4 {[%clk 0:02:26.9]} 23. Ne5 {[%clk 0:01:59.9]} 23... Rxd4
{[%clk 0:02:27.4]} 24. Bf4 {[%clk 0:01:57.4]} 24... Rxe4 {[%clk 0:02:25.1]} 25.
Nxc6 {[%clk 0:01:46.9]} 25... Qxc6 {[%clk 0:02:10]} 0-1

[Event "*** Titled Tuesday 3|2 Blitz"]
[Site "Chess.com"]
[Date "2016.02.02"]
[Round "4"]
[White "Sawyer2908"]
[Black "RamonManon0g"]
[Result "1-0"]
[WhiteElo "2266"]
[BlackElo "2127"]
[TimeControl "180+2"]
[EndTime "11:48:31 PST"]
[Termination "Sawyer2908 won by resignation"]

1. e4 {[%clk 0:02:59.7]} 1... c5 {[%clk 0:03:00.8]} 2. Nf3 {[%clk 0:02:58.7]}
2... d6 {[%clk 0:03:02.1]} 3. d4 {[%clk 0:02:58.9]} 3... cxd4 {[%clk 0:03:04]}
4. Nxd4 {[%clk 0:02:59.9]} 4... Nf6 {[%clk 0:03:04.9]} 5. Nc3 {[%clk 0:03:00.3]}
5... a6 {[%clk 0:03:06.1]} 6. h3 {[%clk 0:03:00.6]} 6... e5 {[%clk 0:03:07.1]}
7. Nde2 {[%clk 0:03:00.8]} 7... h5 {[%clk 0:03:08.4]} 8. Bg5 {[%clk 0:02:58]}
8... Be7 {[%clk 0:03:09.2]} 9. Ng3 {[%clk 0:02:57.7]} 9... h4 {[%clk 0:03:06.4]}
10. Nf5 {[%clk 0:02:58]} 10... Bxf5 {[%clk 0:03:06.4]} 11. exf5 {[%clk
0:02:58.8]} 11... Nc6 {[%clk 0:03:02.1]} 12. Bc4 {[%clk 0:02:52.8]} 12... Nd4
{[%clk 0:02:59.6]} 13. O-O {[%clk 0:02:45.1]} 13... Nxf5 {[%clk 0:02:47.9]} 14.
Qf3 {[%clk 0:02:43.6]} 14... Nd4 {[%clk 0:02:46.8]} 15. Qxb7 {[%clk 0:02:40.4]}
15... Nxc2 {[%clk 0:02:43.5]} 16. Bxf6 {[%clk 0:02:32.7]} 16... gxf6 {[%clk
0:02:32.5]} 17. Qd5 {[%clk 0:02:18.7]} 17... Rh7 {[%clk 0:02:28.2]} 18. Qe4
{[%clk 0:02:15.8]} 18... Rg7 {[%clk 0:02:24.2]} 19. Qxc2 {[%clk 0:02:13.6]}
19... Rb8 {[%clk 0:02:20.2]} 20. Bd5 {[%clk 0:02:11.2]} 20... Qd7 {[%clk
0:02:16.6]} 21. Kh1 {[%clk 0:02:04.8]} 21... f5 {[%clk 0:02:11.3]} 22. Rac1
{[%clk 0:02:01.3]} 22... Bg5 {[%clk 0:01:59.5]} 23. Ne4 {[%clk 0:01:59.7]} 23...
Kf8 {[%clk 0:01:55.6]} 24. Nxg5 {[%clk 0:01:58.3]} 24... Rxg5 {[%clk 0:01:57.5]}
25. Qc7 {[%clk 0:01:58.8]} 25... Qxc7 {[%clk 0:01:50.1]} 26. Rxc7 {[%clk
0:01:58.3]} 26... Rxb2 {[%clk 0:01:51.3]} 27. Rxf7+ {[%clk 0:01:58.1]} 27... Ke8
{[%clk 0:01:51.9]} 28. Rc1 {[%clk 0:01:58.1]} 28... Rb8 {[%clk 0:01:50.6]} 29.
Rh7 {[%clk 0:01:57.7]} 1-0

[Event "*** Titled Tuesday 3|2 Blitz"]
[Site "Chess.com"]
[Date "2016.02.02"]
[Round "4"]
[White "Dr-Bassem"]
[Black "Keranke"]
[Result "1-0"]
[WhiteElo "2461"]
[BlackElo "2519"]
[TimeControl "180+2"]
[EndTime "11:48:51 PST"]
[Termination "Dr-Bassem won by resignation"]

1. e4 {[%clk 0:03:01.9]} 1... g6 {[%clk 0:03:01.2]} 2. d4 {[%clk 0:03:02.4]}
2... Bg7 {[%clk 0:03:02.4]} 3. Nc3 {[%clk 0:03:04]} 3... d6 {[%clk 0:03:03.9]}
4. Be3 {[%clk 0:03:04.2]} 4... a6 {[%clk 0:03:05.2]} 5. a4 {[%clk 0:03:04.7]}
5... b6 {[%clk 0:03:05.9]} 6. Qd2 {[%clk 0:03:04.7]} 6... Bb7 {[%clk 0:03:07.4]}
7. h4 {[%clk 0:03:04.5]} 7... h6 {[%clk 0:03:08.3]} 8. f3 {[%clk 0:02:31]} 8...
c5 {[%clk 0:03:08.3]} 9. Bc4 {[%clk 0:02:25.1]} 9... Nc6 {[%clk 0:03:06.2]} 10.
Nge2 {[%clk 0:02:23.5]} 10... cxd4 {[%clk 0:02:59.9]} 11. Nxd4 {[%clk
0:02:24.1]} 11... Ne5 {[%clk 0:03:01.2]} 12. Bb3 {[%clk 0:02:19.4]} 12... Rc8
{[%clk 0:02:59.9]} 13. h5 {[%clk 0:02:19.5]} 13... g5 {[%clk 0:02:50.2]} 14. Nf5
{[%clk 0:02:20.4]} 14... Bf8 {[%clk 0:02:44.5]} 15. Rd1 {[%clk 0:02:13.5]} 15...
Nf6 {[%clk 0:02:39.5]} 16. Qd4 {[%clk 0:02:02.7]} 16... Rc5 {[%clk 0:02:26.1]}
17. a5 {[%clk 0:01:54.6]} 17... Nc6 {[%clk 0:02:09.3]} 18. Qa4 {[%clk
0:01:50.7]} 18... Rxa5 {[%clk 0:02:09.4]} 19. Qc4 {[%clk 0:01:42.3]} 19... Ne5
{[%clk 0:02:09.6]} 20. Qb4 {[%clk 0:01:36.9]} 20... b5 {[%clk 0:01:58.7]} 21.
Qd4 {[%clk 0:01:25.1]} 21... Nc6 {[%clk 0:01:43.2]} 22. Qb6 {[%clk 0:01:16.5]}
22... b4 {[%clk 0:01:41.1]} 23. Qxb7 {[%clk 0:01:14]} 1-0

[Event "*** Titled Tuesday 3|2 Blitz"]
[Site "Chess.com"]
[Date "2016.02.02"]
[Round "4"]
[White "KNVB"]
[Black "Mornar1951"]
[Result "0-1"]
[WhiteElo "2394"]
[BlackElo "2621"]
[TimeControl "180+2"]
[EndTime "11:49:27 PST"]
[Termination "Mornar1951 won on time"]

1. d4 {[%clk 0:03:01.9]} 1... Nf6 {[%clk 0:03:00.6]} 2. c4 {[%clk 0:03:02.1]}
2... e6 {[%clk 0:03:02.1]} 3. Nc3 {[%clk 0:03:02.7]} 3... Bb4 {[%clk 0:03:02.9]}
4. Qc2 {[%clk 0:03:03.6]} 4... O-O {[%clk 0:03:03.6]} 5. Nf3 {[%clk 0:03:04.2]}
5... c5 {[%clk 0:03:03.3]} 6. dxc5 {[%clk 0:03:04.7]} 6... Na6 {[%clk 0:03:05]}
7. g3 {[%clk 0:03:00.7]} 7... Nxc5 {[%clk 0:03:06.1]} 8. Bg2 {[%clk 0:02:59.5]}
8... b6 {[%clk 0:03:07.7]} 9. O-O {[%clk 0:02:57]} 9... Bb7 {[%clk 0:03:05.9]}
10. Bf4 {[%clk 0:02:44.1]} 10... Bxc3 {[%clk 0:02:52.9]} 11. Qxc3 {[%clk
0:02:42.6]} 11... Rc8 {[%clk 0:02:54.5]} 12. Rfd1 {[%clk 0:02:19.7]} 12... d5
{[%clk 0:02:55.1]} 13. Qa3 {[%clk 0:01:43.8]} 13... a5 {[%clk 0:02:49.3]} 14.
Nd4 {[%clk 0:01:35.1]} 14... Qe7 {[%clk 0:02:46.2]} 15. Nb5 {[%clk 0:01:33.4]}
15... Rfd8 {[%clk 0:02:43]} 16. Rac1 {[%clk 0:01:17]} 16... h6 {[%clk
0:02:38.2]} 17. b3 {[%clk 0:01:12.2]} 17... e5 {[%clk 0:02:36]} 18. Bd2 {[%clk
0:00:42.7]} 18... d4 {[%clk 0:02:36.9]} 19. Bxb7 {[%clk 0:00:26.7]} 19... Qxb7
{[%clk 0:02:38.8]} 20. Be1 {[%clk 0:00:28]} 20... Nfe4 {[%clk 0:02:28.5]} 21. f3
{[%clk 0:00:19.5]} 21... Ng5 {[%clk 0:02:26.6]} 22. Bf2 {[%clk 0:00:16.8]} 22...
d3 {[%clk 0:02:25.3]} 23. Bxc5 {[%clk 0:00:02.4]} 23... bxc5 {[%clk 0:02:23.1]}
24. Kf2 {[%clk 0:00:02.6]} 24... dxe2 {[%clk 0:02:22.1]} 0-1

[Event "*** Titled Tuesday 3|2 Blitz"]
[Site "Chess.com"]
[Date "2016.02.02"]
[Round "4"]
[White "Iball95"]
[Black "jcgs1030"]
[Result "1-0"]
[WhiteElo "2388"]
[BlackElo "2197"]
[TimeControl "180+2"]
[EndTime "11:49:42 PST"]
[Termination "Iball95 won by resignation"]

1. e4 {[%clk 0:03:01.9]} 1... c5 {[%clk 0:03:00.9]} 2. Nf3 {[%clk 0:03:02.1]}
2... d6 {[%clk 0:03:01.6]} 3. Bb5+ {[%clk 0:03:02.2]} 3... Nc6 {[%clk
0:03:01.8]} 4. O-O {[%clk 0:03:00.5]} 4... Bd7 {[%clk 0:03:01.7]} 5. Re1 {[%clk
0:03:01.4]} 5... a6 {[%clk 0:03:01.9]} 6. Bf1 {[%clk 0:03:01.8]} 6... Bg4 {[%clk
0:03:01]} 7. h3 {[%clk 0:03:00.9]} 7... Bh5 {[%clk 0:03:01.2]} 8. c3 {[%clk
0:03:01.2]} 8... Ne5 {[%clk 0:02:55.8]} 9. g4 {[%clk 0:02:47.1]} 9... Bg6 {[%clk
0:02:51.2]} 10. d4 {[%clk 0:02:47.1]} 10... Nxf3+ {[%clk 0:02:51.4]} 11. Qxf3
{[%clk 0:02:47.1]} 11... e5 {[%clk 0:02:52.5]} 12. Be3 {[%clk 0:02:39.3]} 12...
Nf6 {[%clk 0:02:51.3]} 13. Nd2 {[%clk 0:02:39.4]} 13... h5 {[%clk 0:02:47.8]}
14. g5 {[%clk 0:02:39.1]} 14... Nd7 {[%clk 0:02:48.2]} 15. h4 {[%clk 0:02:34.5]}
15... Be7 {[%clk 0:02:48.5]} 16. Rad1 {[%clk 0:02:34.5]} 16... Qa5 {[%clk
0:02:44.2]} 17. Nc4 {[%clk 0:02:33.9]} 17... Qxa2 {[%clk 0:02:42.1]} 18. dxc5
{[%clk 0:02:33.2]} 18... dxc5 {[%clk 0:02:38.7]} 19. Rxd7 {[%clk 0:02:28.3]}
19... Kxd7 {[%clk 0:02:39.1]} 20. Nxe5+ {[%clk 0:02:29.3]} 20... Kc8 {[%clk
0:02:23.1]} 21. Bf4 {[%clk 0:02:14]} 21... b6 {[%clk 0:01:51.2]} 22. Qh3+ {[%clk
0:01:57.7]} 22... Qe6 {[%clk 0:01:17.8]} 23. Nxg6 {[%clk 0:01:56.4]} 23... Re8
{[%clk 0:01:15.8]} 24. Nxe7+ {[%clk 0:01:42.4]} 24... Rxe7 {[%clk 0:01:14.8]}
25. Qxe6+ {[%clk 0:01:32.2]} 25... fxe6 {[%clk 0:01:16.7]} 26. Bd6 {[%clk
0:01:31.8]} 26... Rd7 {[%clk 0:01:16.7]} 27. e5 {[%clk 0:01:30.2]} 27... Rd8
{[%clk 0:01:17.3]} 28. Rd1 {[%clk 0:01:23.5]} 28... Kd7 {[%clk 0:01:10.6]} 29.
Bxc5+ {[%clk 0:01:21.2]} 29... Kc6 {[%clk 0:01:11.6]} 30. Bd6 {[%clk 0:01:19.3]}
1-0

[Event "*** Titled Tuesday 3|2 Blitz"]
[Site "Chess.com"]
[Date "2016.02.02"]
[Round "4"]
[White "Spinaltap"]
[Black "Er_is_geen_hoop_meer"]
[Result "0-1"]
[WhiteElo "2382"]
[BlackElo "2314"]
[TimeControl "180+2"]
[EndTime "11:50:02 PST"]
[Termination "Er_is_geen_hoop_meer won by resignation"]

1. d4 {[%clk 0:03:01.9]} 1... Nf6 {[%clk 0:02:52.3]} 2. c4 {[%clk 0:03:01.9]}
2... g6 {[%clk 0:02:53.5]} 3. f3 {[%clk 0:03:01.8]} 3... Bg7 {[%clk 0:02:53.5]}
4. e4 {[%clk 0:03:02.6]} 4... d6 {[%clk 0:02:54.5]} 5. Be3 {[%clk 0:03:01.5]}
5... O-O {[%clk 0:02:55.2]} 6. Ne2 {[%clk 0:02:58]} 6... c5 {[%clk 0:02:47.6]}
7. d5 {[%clk 0:02:57.6]} 7... b5 {[%clk 0:02:44.4]} 8. cxb5 {[%clk 0:02:56.8]}
8... a6 {[%clk 0:02:45.5]} 9. Nec3 {[%clk 0:02:57.3]} 9... e6 {[%clk 0:02:42.1]}
10. dxe6 {[%clk 0:02:36.1]} 10... fxe6 {[%clk 0:02:44]} 11. Nd2 {[%clk 0:02:35]}
11... Nbd7 {[%clk 0:02:38.7]} 12. Qb3 {[%clk 0:02:26.1]} 12... Ne5 {[%clk
0:02:32.6]} 13. a4 {[%clk 0:02:13.1]} 13... g5 {[%clk 0:02:17.3]} 14. Be2 {[%clk
0:02:08.1]} 14... Nh5 {[%clk 0:02:13.4]} 15. g3 {[%clk 0:01:56.9]} 15... d5
{[%clk 0:02:10.3]} 16. Bxc5 {[%clk 0:01:55.3]} 16... d4 {[%clk 0:02:11.1]} 17.
Nd1 {[%clk 0:01:46.8]} 17... d3 {[%clk 0:02:10.9]} 18. Bf1 {[%clk 0:01:41.6]}
18... Nxf3+ {[%clk 0:01:37.2]} 19. Nxf3 {[%clk 0:01:42.5]} 19... Rxf3 {[%clk
0:01:39.1]} 20. Kd2 {[%clk 0:01:36]} 20... axb5 {[%clk 0:01:30.8]} 21. Bh3
{[%clk 0:01:34.3]} 21... bxa4 {[%clk 0:01:28]} 22. Bxe6+ {[%clk 0:01:31.4]}
22... Kh8 {[%clk 0:01:28.8]} 23. Qd5 {[%clk 0:01:32.1]} 23... Qa5+ {[%clk
0:01:26]} 24. Kc1 {[%clk 0:01:31.9]} 24... Bxe6 {[%clk 0:01:23.1]} 25. Qxg5
{[%clk 0:01:31.6]} 25... Bh6 {[%clk 0:01:17.3]} 26. Qxh6 {[%clk 0:01:31.6]}
26... Qxc5+ {[%clk 0:01:17.8]} 27. Nc3 {[%clk 0:01:32.8]} 27... Qe3+ {[%clk
0:01:14.9]} 28. Qxe3 {[%clk 0:01:33.5]} 28... Rxe3 {[%clk 0:01:16.8]} 29. Kd2
{[%clk 0:01:34.3]} 29... Rf3 {[%clk 0:01:17.9]} 30. Rxa4 {[%clk 0:01:34.4]}
30... Rxa4 {[%clk 0:01:18.4]} 31. Nxa4 {[%clk 0:01:35.5]} 31... Bc4 {[%clk
0:01:20.3]} 32. Nc5 {[%clk 0:01:33.3]} 32... Rf2+ {[%clk 0:01:19.1]} 33. Kc3
{[%clk 0:01:33.4]} 33... Rc2+ {[%clk 0:01:20.3]} 34. Kd4 {[%clk 0:01:34.1]}
34... d2 {[%clk 0:01:21]} 0-1

[Event "*** Titled Tuesday 3|2 Blitz"]
[Site "Chess.com"]
[Date "2016.02.02"]
[Round "4"]
[White "SabinoBrunello"]
[Black "rikyshi"]
[Result "1-0"]
[WhiteElo "2484"]
[BlackElo "2069"]
[TimeControl "180+2"]
[EndTime "11:50:34 PST"]
[Termination "SabinoBrunello won on time"]

1. d4 {[%clk 0:03:01.9]} 1... Nf6 {[%clk 0:02:59]} 2. c4 {[%clk 0:03:02.4]} 2...
g6 {[%clk 0:02:55.5]} 3. Nc3 {[%clk 0:03:02.3]} 3... Bg7 {[%clk 0:02:55.1]} 4.
e4 {[%clk 0:03:02.7]} 4... d6 {[%clk 0:02:56.3]} 5. Be2 {[%clk 0:03:03.3]} 5...
O-O {[%clk 0:02:57]} 6. Bg5 {[%clk 0:03:03.4]} 6... c6 {[%clk 0:02:50.9]} 7. Nf3
{[%clk 0:03:01.4]} 7... Nbd7 {[%clk 0:02:52]} 8. O-O {[%clk 0:03:01.6]} 8... Qc7
{[%clk 0:02:51.1]} 9. Rc1 {[%clk 0:02:56.3]} 9... e5 {[%clk 0:02:51.5]} 10. d5
{[%clk 0:02:56.8]} 10... a5 {[%clk 0:02:45.8]} 11. Nd2 {[%clk 0:02:53.3]} 11...
Nc5 {[%clk 0:02:40.9]} 12. b3 {[%clk 0:02:51.3]} 12... h6 {[%clk 0:02:33.5]} 13.
Be3 {[%clk 0:02:50.2]} 13... Na6 {[%clk 0:02:25]} 14. a3 {[%clk 0:02:44.8]}
14... Ne8 {[%clk 0:02:07.1]} 15. Na4 {[%clk 0:02:41.8]} 15... f5 {[%clk
0:02:02.2]} 16. Nb6 {[%clk 0:02:36.3]} 16... Rb8 {[%clk 0:02:03]} 17. Nxc8
{[%clk 0:02:34.6]} 17... Rxc8 {[%clk 0:02:04.2]} 18. exf5 {[%clk 0:02:16]} 18...
gxf5 {[%clk 0:01:54.2]} 19. f4 {[%clk 0:02:15.9]} 19... e4 {[%clk 0:01:50.6]}
20. g4 {[%clk 0:01:51.7]} 20... Bb2 {[%clk 0:01:34.8]} 21. gxf5 {[%clk
0:01:38.8]} 21... cxd5 {[%clk 0:01:31.8]} 22. Rb1 {[%clk 0:01:30.9]} 22... Bxa3
{[%clk 0:00:04.6]} 23. cxd5 {[%clk 0:01:27.5]} 23... Bc5 {[%clk 0:00:06]} 24.
Bxc5 {[%clk 0:01:20.7]} 1-0

[Event "*** Titled Tuesday 3|2 Blitz"]
[Site "Chess.com"]
[Date "2016.02.02"]
[Round "4"]
[White "igorkovalenko"]
[Black "Smirnov_Pavel"]
[Result "1-0"]
[WhiteElo "2538"]
[BlackElo "2523"]
[TimeControl "180+2"]
[EndTime "11:50:47 PST"]
[Termination "igorkovalenko won by resignation"]

1. d4 {[%clk 0:03:01.9]} 1... d5 {[%clk 0:03:00.2]} 2. c4 {[%clk 0:03:02.6]}
2... e6 {[%clk 0:03:00.6]} 3. Nc3 {[%clk 0:03:03.6]} 3... c6 {[%clk 0:03:00.4]}
4. e3 {[%clk 0:03:04.4]} 4... Nf6 {[%clk 0:03:00.6]} 5. Nf3 {[%clk 0:03:04.9]}
5... Nbd7 {[%clk 0:03:01.6]} 6. Qc2 {[%clk 0:03:06.4]} 6... Bd6 {[%clk
0:03:02.2]} 7. b3 {[%clk 0:03:07.8]} 7... O-O {[%clk 0:03:03.1]} 8. Bb2 {[%clk
0:03:09.3]} 8... Qe7 {[%clk 0:03:04.2]} 9. h3 {[%clk 0:03:10.2]} 9... Re8 {[%clk
0:03:03.2]} 10. g4 {[%clk 0:03:11.4]} 10... e5 {[%clk 0:02:39]} 11. g5 {[%clk
0:03:02.7]} 11... Ne4 {[%clk 0:02:39.5]} 12. Nxe4 {[%clk 0:03:03.7]} 12... dxe4
{[%clk 0:02:39.8]} 13. Qxe4 {[%clk 0:03:05.3]} 13... Bb4+ {[%clk 0:02:38.5]} 14.
Ke2 {[%clk 0:03:06.4]} 14... f5 {[%clk 0:02:27.3]} 15. gxf6 {[%clk 0:03:00.1]}
15... Nxf6 {[%clk 0:02:26]} 16. Qxe5 {[%clk 0:02:54.6]} 16... Qf7 {[%clk
0:02:21.6]} 17. Qh2 {[%clk 0:02:41.3]} 17... Qg6 {[%clk 0:02:14.3]} 18. Rc1
{[%clk 0:02:37.7]} 18... Bf5 {[%clk 0:02:00.3]} 19. Rg1 {[%clk 0:02:22.1]} 19...
Bd3+ {[%clk 0:00:55.1]} 20. Kd1 {[%clk 0:02:23]} 20... Qf5 {[%clk 0:00:55.1]}
21. Be2 {[%clk 0:02:07.8]} 21... Rf8 {[%clk 0:00:22]} 22. Qg2 {[%clk 0:02:01.4]}
22... Nh5 {[%clk 0:00:16.9]} 23. d5 {[%clk 0:01:53.6]} 23... Rf7 {[%clk
0:00:10.7]} 24. Ne5 {[%clk 0:01:51.6]} 24... Bxe2+ {[%clk 0:00:08.1]} 25. Kxe2
{[%clk 0:01:53.5]} 25... Re7 {[%clk 0:00:08.3]} 26. Qg5 {[%clk 0:01:47.2]} 26...
Rf8 {[%clk 0:00:02.3]} 27. Qxf5 {[%clk 0:01:44]} 27... Rxf5 {[%clk 0:00:03]} 28.
Nd3 {[%clk 0:01:43.6]} 28... Bd6 {[%clk 0:00:03.3]} 29. c5 {[%clk 0:01:43.8]}
29... Bb8 {[%clk 0:00:04.4]} 30. d6 {[%clk 0:01:45.2]} 30... Ref7 {[%clk
0:00:04.7]} 31. f4 {[%clk 0:01:44.4]} 31... Rd5 {[%clk 0:00:04.7]} 32. b4 {[%clk
0:01:44.1]} 1-0

[Event "*** Titled Tuesday 3|2 Blitz"]
[Site "Chess.com"]
[Date "2016.02.02"]
[Round "4"]
[White "IMRosen"]
[Black "kharposh"]
[Result "1-0"]
[WhiteElo "2256"]
[BlackElo "2072"]
[TimeControl "180+2"]
[EndTime "11:51:19 PST"]
[Termination "IMRosen won by checkmate"]

1. Nf3 {[%clk 0:03:01.9]} 1... Nf6 {[%clk 0:03:00.3]} 2. d4 {[%clk 0:03:01.5]}
2... d5 {[%clk 0:03:00.4]} 3. Bf4 {[%clk 0:03:00.7]} 3... Bf5 {[%clk 0:02:59.3]}
4. c4 {[%clk 0:02:59.5]} 4... dxc4 {[%clk 0:02:53.7]} 5. e3 {[%clk 0:02:49]}
5... e6 {[%clk 0:02:51.7]} 6. Bxc4 {[%clk 0:02:45.7]} 6... Bb4+ {[%clk 0:02:52]}
7. Nbd2 {[%clk 0:02:44.2]} 7... O-O {[%clk 0:02:46.8]} 8. O-O {[%clk 0:02:37.7]}
8... Bd6 {[%clk 0:02:42.9]} 9. Ne5 {[%clk 0:02:36.4]} 9... Nbd7 {[%clk
0:02:36.3]} 10. Ndf3 {[%clk 0:02:33.8]} 10... Nh5 {[%clk 0:02:28.3]} 11. Rc1
{[%clk 0:02:28.3]} 11... Nxf4 {[%clk 0:02:27.1]} 12. exf4 {[%clk 0:02:30.2]}
12... c6 {[%clk 0:02:24.1]} 13. Re1 {[%clk 0:02:30.4]} 13... Nb6 {[%clk
0:02:23.8]} 14. Bb3 {[%clk 0:02:30.5]} 14... Nd5 {[%clk 0:02:24.3]} 15. g3
{[%clk 0:02:30.5]} 15... Rc8 {[%clk 0:01:58]} 16. Qd2 {[%clk 0:02:31.5]} 16...
Qe7 {[%clk 0:01:52.6]} 17. a3 {[%clk 0:02:32.7]} 17... Rfd8 {[%clk 0:01:52.3]}
18. Ba2 {[%clk 0:02:33.9]} 18... h6 {[%clk 0:01:40.2]} 19. Nh4 {[%clk
0:02:34.7]} 19... Bh7 {[%clk 0:01:37.9]} 20. f5 {[%clk 0:02:33.8]} 20... Bxe5
{[%clk 0:01:33.1]} 21. Rxe5 {[%clk 0:02:33.5]} 21... Qg5 {[%clk 0:01:28.6]} 22.
f4 {[%clk 0:02:28.6]} 22... Qg4 {[%clk 0:01:08.6]} 23. fxe6 {[%clk 0:02:28]}
23... fxe6 {[%clk 0:01:09.3]} 24. Rce1 {[%clk 0:02:29.1]} 24... Rd6 {[%clk
0:01:02.8]} 25. Qg2 {[%clk 0:02:30.2]} 25... Rf8 {[%clk 0:00:59]} 26. h3 {[%clk
0:02:29.9]} 26... Nxf4 {[%clk 0:00:56.9]} 27. hxg4 {[%clk 0:02:29]} 27... Nxg2
{[%clk 0:00:57.1]} 28. Kxg2 {[%clk 0:02:30.2]} 28... Rxd4 {[%clk 0:00:57.6]} 29.
Rxe6 {[%clk 0:02:30.5]} 29... Kh8 {[%clk 0:00:58.3]} 30. Re8 {[%clk 0:02:31.7]}
30... Rd2+ {[%clk 0:00:56.5]} 31. R1e2 {[%clk 0:02:29.4]} 31... Rxe8 {[%clk
0:00:39.2]} 32. Rxd2 {[%clk 0:02:28]} 32... Be4+ {[%clk 0:00:39.6]} 33. Kf2
{[%clk 0:02:27.9]} 33... g5 {[%clk 0:00:29.1]} 34. Nf5 {[%clk 0:02:28.3]} 34...
Rf8 {[%clk 0:00:29.4]} 35. Be6 {[%clk 0:02:26.2]} 35... Rf6 {[%clk 0:00:30.2]}
36. Rd8+ {[%clk 0:02:25.6]} 36... Kh7 {[%clk 0:00:30.3]} 37. Rd7+ {[%clk
0:02:27]} 37... Kh8 {[%clk 0:00:30.1]} 38. Re7 {[%clk 0:02:24.2]} 38... h5
{[%clk 0:00:29.1]} 39. Ke3 {[%clk 0:02:25.5]} 39... Bb1 {[%clk 0:00:24.4]} 40.
Re8+ {[%clk 0:02:22.7]} 40... Kh7 {[%clk 0:00:24.8]} 41. Bg8+ {[%clk 0:02:22.4]}
41... Kg6 {[%clk 0:00:25.4]} 42. gxh5+ {[%clk 0:02:18.3]} 42... Kxh5 {[%clk
0:00:23.9]} 43. Nd4 {[%clk 0:02:14.8]} 43... Kg4 {[%clk 0:00:23.1]} 44. Ne2
{[%clk 0:02:09.8]} 44... Rf3+ {[%clk 0:00:22.9]} 45. Kd2 {[%clk 0:02:11.1]}
45... Rf2 {[%clk 0:00:21.5]} 46. Be6+ {[%clk 0:02:12.3]} 46... Kf3 {[%clk
0:00:19.6]} 47. Rf8+ {[%clk 0:02:13.2]} 47... Kg2 {[%clk 0:00:20.9]} 48. Bh3+
{[%clk 0:02:14.3]} 48... Kxh3 {[%clk 0:00:18.9]} 49. Rxf2 {[%clk 0:02:15.9]}
49... Be4 {[%clk 0:00:17.4]} 50. Ke3 {[%clk 0:02:16.5]} 50... Bd5 {[%clk
0:00:18.1]} 51. Rf5 {[%clk 0:02:17.5]} 51... g4 {[%clk 0:00:18.3]} 52. Kf2
{[%clk 0:02:17]} 52... Bc4 {[%clk 0:00:18.8]} 53. Rh5# {[%clk 0:02:18]} 1-0

[Event "*** Titled Tuesday 3|2 Blitz"]
[Site "Chess.com"]
[Date "2016.02.02"]
[Round "4"]
[White "AlexanderL"]
[Black "tac49"]
[Result "1-0"]
[WhiteElo "2586"]
[BlackElo "2459"]
[TimeControl "180+2"]
[EndTime "11:51:24 PST"]
[Termination "AlexanderL won by resignation"]

1. d4 {[%clk 0:02:21.1]} 1... Nf6 {[%clk 0:02:50]} 2. c4 {[%clk 0:02:23]} 2...
g6 {[%clk 0:02:48.8]} 3. Nc3 {[%clk 0:02:24.9]} 3... Bg7 {[%clk 0:02:48.5]} 4.
e4 {[%clk 0:02:25.7]} 4... d6 {[%clk 0:02:47.8]} 5. Nf3 {[%clk 0:02:26.6]} 5...
O-O {[%clk 0:02:47.7]} 6. Be2 {[%clk 0:02:28]} 6... e5 {[%clk 0:02:46.7]} 7. O-O
{[%clk 0:02:28.6]} 7... Nbd7 {[%clk 0:02:45.6]} 8. Be3 {[%clk 0:02:26.6]} 8...
Qe7 {[%clk 0:02:44.1]} 9. d5 {[%clk 0:02:22.9]} 9... Nc5 {[%clk 0:02:22.1]} 10.
Nd2 {[%clk 0:02:22.6]} 10... a5 {[%clk 0:02:22.9]} 11. a3 {[%clk 0:02:20.7]}
11... a4 {[%clk 0:02:01.4]} 12. Bxc5 {[%clk 0:02:20.4]} 12... dxc5 {[%clk
0:02:03.3]} 13. Nxa4 {[%clk 0:02:22]} 13... Bh6 {[%clk 0:02:03.5]} 14. Nc3
{[%clk 0:02:22.6]} 14... Ne8 {[%clk 0:02:00.9]} 15. Qc2 {[%clk 0:02:12.3]} 15...
Nd6 {[%clk 0:02:00.6]} 16. b4 {[%clk 0:02:07.3]} 16... b6 {[%clk 0:02:00.6]} 17.
bxc5 {[%clk 0:01:59.2]} 17... bxc5 {[%clk 0:02:02.5]} 18. a4 {[%clk 0:02:00.4]}
18... f5 {[%clk 0:02:02.5]} 19. Bd3 {[%clk 0:02:01.3]} 19... Qg5 {[%clk
0:01:51.5]} 20. Nb3 {[%clk 0:01:53.9]} 20... Qe7 {[%clk 0:00:57.2]} 21. Nxc5
{[%clk 0:01:30.8]} 21... Nxc4 {[%clk 0:00:52.8]} 22. Ne6 {[%clk 0:01:31.6]}
22... Bxe6 {[%clk 0:00:50.8]} 23. Bxc4 {[%clk 0:01:32.3]} 23... Bf7 {[%clk
0:00:48.8]} 24. Nb5 {[%clk 0:01:22.4]} 24... Qc5 {[%clk 0:00:44.8]} 25. Bb3
{[%clk 0:01:09.7]} 25... Qxc2 {[%clk 0:00:43.6]} 26. Bxc2 {[%clk 0:01:11.6]}
26... Rfc8 {[%clk 0:00:34.5]} 27. exf5 {[%clk 0:01:08.6]} 27... Bxd5 {[%clk
0:00:29.1]} 28. fxg6 {[%clk 0:01:09.7]} 28... Bc4 {[%clk 0:00:29.7]} 29. gxh7+
{[%clk 0:01:09.5]} 29... Kg7 {[%clk 0:00:30.9]} 30. Rfe1 {[%clk 0:01:09.6]}
30... Rab8 {[%clk 0:00:04]} 31. Rxe5 {[%clk 0:01:07.7]} 1-0